bitfinex/quotes_ETHUSD_20240902
["timestamp","ask_amount","ask_price","bid_price","bid_amount"]
[1725267426497,2.82396,2478.8,2477.8,2.4762]
[1725267426498,2.82458,2478.3,2477.8,2.4762]
[1725267426714,2.82411,2478.7,2477.9,5.9385]
[1725267426894,2.82411,2478.7,2478.1,2.3885]
[1725267427076,2.82411,2478.7,2478.3,2.3885]
[1725267427274,2.82387,2478.9,2478.3,2.46919002]
[1725267427586,2.82395,2478.8,2478.4,0.301919]
[1725267428611,2.82387,2478.9,2478.4,0.301919]
[1725267428906,2.82387,2478.9,2478.5,0.55]
[1725267429776,2.82395,2478.8,2478.5,0.55]
[1725267432066,2.82426,2478.6,2478.3,2.3885]
[1725267432280,5.64852,2478.6,2478.3,2.3885]
[1725267432521,2.82426,2478.6,2478.3,3.22735]
[1725267432703,2.82426,2478.6,2478.3,3.30804105]
[1725267433106,5.64802,2478.8,2478.3,3.30804105]
[1725267433415,5.64802,2478.8,2478.4,0.6308041]
[1725267433627,2.82399,2478.8,2478.4,0.6308041]
[1725267433785,2.82399,2478.8,2478.5,0.55]
[1725267434420,5.648,2478.8,2478.5,0.55]
[1725267434991,2.82399,2478.8,2478.5,0.55]
[1725267435318,2.82399,2478.8,2478.5,0.99081541]
[1725267436409,2.82399,2478.8,2478.2,3.0]
[1725267436410,2.82426,2478.6,2478.2,3.0]
[1725267436604,2.8243,2478.5,2478.3,0.55]
[1725267436928,2.8243,2478.5,2478.3,0.28158]
[1725267438393,2.82426,2478.6,2478.3,0.28158]
[1725267438600,2.82426,2478.6,2478.3,0.36227144]
[1725267439134,2.8244,2478.4,2478.2,3.0]
[1725267439340,2.8244,2478.4,2478.1,2.2658]
[1725267440134,2.82463,2478.2,2478.1,2.2658]
[1725267440523,2.82463,2478.2,2478.1,2.8158]
[1725267440837,2.82463,2478.2,2478.1,5.8158]
[1725267441923,2.82463,2478.2,2478.1,3.55]
[1725267442511,2.82463,2478.2,2478.1,0.55]
[1725267442713,2.82463,2478.2,2478.1,3.55]
[1725267443018,2.82463,2478.2,2478.1,0.55]
[1725267443221,2.82463,2478.2,2478.1,3.0]
[1725267443539,2.82463,2478.2,2478.1,0.55]
[1725267443832,2.82485,2478.0,2477.8,2.2927]
[1725267444131,2.82513,2477.8,2477.5,2.4507]
[1725267444433,2.8252,2477.7,2477.6,0.98607]
[1725267444735,2.8252,2477.7,2477.5,2.4507]
[1725267445543,2.82513,2477.8,2477.5,2.4507]
[1725267445834,2.82513,2477.8,2477.6,0.55]
[1725267446031,2.8252,2477.7,2477.6,3.55]
[1725267446395,2.82548,2477.5,2477.3,2.4638]
[1725267446618,2.82548,2477.5,2477.3,2.71018]
[1725267450452,2.82525,2477.7,2477.3,2.71018]
[1725267451113,2.82533,2477.6,2477.3,2.71018]
[1725267451854,2.82525,2477.7,2477.3,2.71018]
[1725267452215,5.65054,2477.7,2477.3,2.71018]
[1725267452529,2.82525,2477.7,2477.4,0.271018]
[1725267453810,2.82503,2477.9,2477.4,0.271018]
[1725267454019,2.82487,2478.0,2477.5,3.11891684]
[1725267454254,2.82475,2478.1,2477.5,3.11891684]
[1725267454255,2.82498,2477.9,2477.6,0.92153848]
[1725267454551,2.82475,2478.1,2477.7,0.55]
[1725267454552,5.64957,2478.1,2477.7,0.55]
[1725267454859,2.82475,2478.1,2477.7,0.95404553]
[1725267455152,5.64957,2478.1,2477.7,0.95404553]
[1725267455361,2.8249,2478.0,2477.7,0.95404553]
[1725267455554,2.82475,2478.1,2477.7,0.95404553]
[1725267456048,5.64956,2478.1,2477.7,0.95404553]
[1725267456251,2.82456,2478.3,2477.8,0.0807115]
[1725267456426,2.82466,2478.2,2477.9,2.8698]
[1725267457529,2.82478,2478.1,2477.9,2.8698]
[1725267457738,2.82466,2478.2,2477.9,2.8698]
[1725267457943,5.64939,2478.2,2477.9,3.24500051]
[1725267458330,2.82466,2478.2,2477.9,3.24500051]
[1725267458916,5.64937,2478.2,2477.9,3.24500051]
[1725267459134,5.64936,2478.2,2477.9,3.24500051]
[1725267459729,2.82477,2478.1,2477.9,3.24500051]
[1725267459933,2.82477,2478.1,2477.9,0.92520051]
[1725267460465,2.82477,2478.1,2477.7,2.82494553]
[1725267460466,2.82485,2478.0,2477.7,2.82494553]
[1725267461752,2.82485,2478.0,2477.7,0.40404553]
[1725267461945,2.82505,2477.9,2477.6,3.0]
[1725267462286,5.64982,2478.0,2477.7,0.55]
[1725267462491,5.64982,2478.0,2477.6,4.07679]
[1725267462781,5.64982,2478.0,2477.6,1.07679]
[1725267462976,5.64982,2478.0,2477.7,0.634469]
[1725267463180,5.64978,2478.0,2477.7,0.634469]
[1725267463393,2.82485,2478.0,2477.8,2.4004]
[1725267463577,2.82466,2478.2,2477.8,2.9504]
[1725267463578,5.64937,2478.2,2477.8,2.9504]
[1725267463884,2.82474,2478.1,2477.8,3.6615659]
[1725267465244,2.82497,2477.9,2477.7,0.634469]
[1725267465468,2.82497,2477.9,2477.6,3.0]
[1725267465783,2.82497,2477.9,2477.7,0.55]
[1725267465945,2.90538158,2478.1,2477.7,2.2906]
[1725267465946,2.82482,2478.1,2477.7,2.2906]
[1725267466146,2.82482,2478.1,2477.8,1.2228411]
[1725267466386,2.82482,2478.1,2477.8,1.14213126]
[1725267467394,5.64966,2478.1,2477.8,1.14213126]
[1725267467744,2.82482,2478.1,2477.8,1.14213126]
[1725267468188,5.64964,2478.1,2477.8,1.14213126]
[1725267468554,2.82486,2478.0,2477.8,0.55]
[1725267468790,2.82497,2477.9,2477.8,0.55]
[1725267469286,5.64965,2478.1,2477.8,0.55]
[1725267469646,2.82486,2478.0,2477.8,0.55]
[1725267471485,2.82497,2477.9,2477.8,0.55]
[1725267471887,2.82497,2477.9,2477.6,3.0]
[1725267472091,2.82497,2477.9,2477.5,2.4532]
[1725267472092,5.65003,2477.9,2477.7,0.55]
[1725267472244,2.82497,2477.9,2477.6,3.79532]
[1725267472449,2.82497,2477.9,2477.6,0.79532]
[1725267472682,2.82497,2477.9,2477.6,3.79532]
[1725267475886,2.8248,2478.1,2477.6,3.79532]
[1725267476105,2.82457,2478.3,2477.7,8.36740271]
[1725267476384,2.82457,2478.3,2477.8,1.46627227]
[1725267476592,2.82457,2478.3,2477.8,0.55]
[1725267476593,2.8247,2478.2,2477.8,0.55]
[1725267481380,2.82476,2478.1,2477.8,0.55]
[1725267481610,2.82497,2477.9,2477.5,5.3591]
[1725267481791,2.82497,2477.9,2477.6,0.55]
[1725267481960,2.82497,2477.9,2477.6,3.55]
[1725267484349,5.73019158,2478.1,2477.6,3.55]
[1725267484589,2.82433,2478.5,2477.7,5.14615]
[1725267484823,2.90489158,2478.5,2477.9,2.82487]
[1725267485028,2.82412,2478.7,2478.2,5.20507]
[1725267485322,2.82389,2478.9,2478.3,3.0806917]
[1725267485475,2.82396,2478.8,2478.3,3.0806917]
[1725267485816,2.82407,2478.7,2478.3,0.0806917]
[1725267486326,5.64822,2478.7,2478.3,0.0806917]
[1725267486473,2.82418,2478.6,2478.3,0.90927787]
[1725267486675,2.82418,2478.6,2478.3,3.90927787]
[1725267487287,2.82407,2478.7,2478.3,3.90927787]
[1725267487478,5.6482,2478.7,2478.3,3.90927787]
[1725267487683,2.82407,2478.7,2478.4,0.62897779]
[1725267489221,5.64821,2478.7,2478.4,0.62897779]
[1725267489526,2.82389,2478.9,2478.5,0.55]
[1725267489732,2.82389,2478.9,2478.6,2.4781]
[1725267490027,2.82389,2478.9,2478.6,2.8518761]
[1725267490779,5.64781,2478.9,2478.6,2.4781]
[1725267491074,2.82389,2478.9,2478.6,2.4781]
[1725267491280,5.6478,2478.9,2478.6,2.4781]
[1725267491877,2.82389,2478.9,2478.6,2.4781]
[1725267492335,5.6478,2478.9,2478.6,2.4781]
[1725267492685,2.82389,2478.9,2478.6,2.4781]
[1725267492886,2.82389,2478.9,2478.6,2.84380778]
[1725267500361,2.82389,2478.9,2478.6,2.4781]
[1725267501756,2.90428158,2479.0,2478.6,2.4781]
[1725267502063,2.82372,2479.0,2478.6,2.4781]
[1725267503432,2.90422158,2479.1,2478.6,2.4781]
[1725267503667,2.82366,2479.1,2478.6,3.12623478]
[1725267503869,5.64733,2479.1,2478.6,3.12623478]
[1725267504195,2.82366,2479.1,2478.6,3.12623478]
[1725267504397,5.64733,2479.1,2478.6,3.12623478]
[1725267504790,2.90428158,2479.0,2478.6,3.12623478]
[1725267505097,2.90428158,2479.0,2478.6,2.4781]
[1725267507086,0.08056158,2479.0,2478.6,2.4781]
[1725267507515,2.90430158,2479.0,2478.6,2.4781]
[1725267510371,2.90430158,2479.0,2478.7,0.55]
[1725267510920,2.90430158,2479.0,2478.6,2.4781]
[1725267510921,2.82384,2478.9,2478.6,2.4781]
[1725267511202,2.8243,2478.5,2478.0,7.41]
[1725267511407,2.8244,2478.4,2478.0,9.8537]
[1725267511701,2.8244,2478.4,2478.0,2.4437]
[1725267513162,5.72923158,2478.5,2478.0,2.98807]
[1725267513368,2.8241,2478.7,2478.1,0.08070254]
[1725267513702,2.90466158,2478.7,2478.3,2.3498]
[1725267513863,5.72880158,2478.7,2478.3,2.3498]
[1725267514415,2.82418,2478.6,2478.3,2.3498]
[1725267514759,2.8241,2478.7,2478.3,3.28119013]
[1725267514965,0.08056158,2478.8,2478.4,0.55]
[1725267515282,2.90453158,2478.8,2478.4,0.93311901]
[1725267515616,2.90453158,2478.8,2478.4,0.55]
[1725267515981,2.82406,2478.7,2478.4,0.55]
[1725267516404,5.6482,2478.7,2478.4,0.55]
[1725267516600,2.82406,2478.7,2478.4,0.55]
[1725267517187,5.6482,2478.7,2478.4,0.55]
[1725267517431,5.64819,2478.7,2478.4,0.55]
[1725267517793,2.82406,2478.7,2478.4,0.55]
[1725267518644,2.82406,2478.7,2478.1,8.31725]
[1725267518645,2.82406,2478.7,2478.2,0.55]
[1725267518867,2.82406,2478.7,2478.3,2.4855]
[1725267519064,2.90444158,2478.9,2478.4,0.55]
[1725267519233,2.82395,2478.8,2478.4,0.55]
[1725267519558,2.82329,2479.4,2478.6,2.4657]
[1725267519559,2.90421158,2479.1,2478.6,2.4657]
[1725267519764,5.72790158,2479.1,2478.6,2.4657]
[1725267519923,2.90421158,2479.1,2478.6,2.4657]
[1725267520260,2.82365,2479.1,2478.7,0.55]
[1725267520461,5.64733,2479.1,2478.7,0.55]
[1725267521685,2.82365,2479.1,2478.7,0.55]
[1725267522521,5.64734,2479.1,2478.7,0.55]
[1725267522721,2.82374,2479.0,2478.7,0.55]
[1725267522927,2.90430158,2479.0,2478.7,0.55]
[1725267523122,2.82387,2478.9,2478.7,0.55]
[1725267523375,2.82387,2478.9,2478.5,0.55]
[1725267524861,5.64779,2478.9,2478.5,0.55]
[1725267525042,2.82387,2478.9,2478.5,0.55]
[1725267526039,2.82387,2478.9,2478.6,2.4364]
[1725267526262,2.82387,2478.9,2478.7,0.55]
[1725267529883,2.82387,2478.9,2478.6,0.55]
[1725267530281,5.64778,2478.9,2478.6,0.55]
[1725267530824,2.3686,2479.3,2478.4,5.4785]
[1725267530825,2.90450158,2478.8,2478.4,5.4785]
[1725267530991,2.90450158,2478.8,2478.4,2.4785]
[1725267531332,2.82394,2478.8,2478.4,2.4785]
[1725267532121,2.82407,2478.7,2478.4,2.4785]
[1725267534153,2.82383,2478.9,2478.5,0.55]
[1725267534301,2.82383,2478.9,2478.5,0.79785]
[1725267534898,2.90439158,2478.9,2478.5,0.79785]
[1725267537155,2.82383,2478.9,2478.5,0.79785]
[1725267538057,5.64762,2479.0,2478.5,0.79785]
[1725267538259,5.6476,2479.0,2478.6,0.610073]
[1725267538415,2.82379,2479.0,2478.6,0.610073]
[1725267538614,5.64757,2479.0,2478.6,0.610073]
[1725267538918,2.82378,2479.0,2478.6,0.610073]
[1725267539447,5.64757,2479.0,2478.6,0.610073]
[1725267540444,0.08056158,2478.9,2478.6,0.610073]
[1725267540750,5.64756,2479.0,2478.6,0.610073]
[1725267541128,0.08056158,2478.9,2478.6,0.610073]
[1725267541373,2.90440158,2478.9,2478.5,0.79785]
[1725267545271,2.82378,2479.0,2478.5,0.79785]
[1725267545477,5.64759,2479.0,2478.5,0.79785]
[1725267545691,2.82378,2479.0,2478.5,0.79785]
[1725267546089,5.64758,2479.0,2478.5,0.79785]
[1725267546611,0.08056158,2478.9,2478.5,0.79785]
[1725267546778,5.64799,2478.8,2478.5,0.55]
[1725267546962,5.64797,2478.8,2478.5,0.55]
[1725267547164,2.82395,2478.8,2478.5,0.55]
[1725267547365,2.82407,2478.7,2478.4,2.4785]
[1725267547573,2.82407,2478.7,2478.2,5.3912]
[1725267547782,2.82407,2478.7,2478.3,0.55]
[1725267548017,2.82417,2478.6,2478.3,0.55]
[1725267548911,2.82431,2478.5,2478.2,5.3912]
[1725267549213,2.82441,2478.4,2478.2,2.3912]
[1725267549876,2.82451,2478.3,2478.0,5.3492]
[1725267550081,2.82451,2478.3,2478.1,3.0]
[1725267550309,2.82474,2478.1,2477.8,2.2909]
[1725267550613,2.82497,2477.9,2477.8,2.2909]
[1725267550794,2.82474,2478.1,2477.8,2.2909]
[1725267551005,5.64957,2478.1,2477.8,2.2909]
[1725267551180,2.8247,2478.2,2477.8,2.2909]
[1725267552267,2.8247,2478.2,2477.9,0.55]
[1725267552879,2.8246,2478.3,2477.9,0.55]
[1725267553082,5.64921,2478.3,2477.9,0.55]
[1725267553279,2.82466,2478.2,2477.9,0.55]
[1725267554106,2.82475,2478.1,2477.9,0.55]
[1725267555465,0.08056158,2478.2,2477.8,2.2909]
[1725267555681,2.82493,2478.0,2477.8,2.2909]
[1725267555876,5.64989,2478.0,2477.8,2.2909]
[1725267556091,2.82493,2478.0,2477.8,2.2909]
[1725267556873,2.82493,2478.0,2477.9,0.55]
[1725267557079,2.82493,2478.0,2477.8,2.2909]
[1725267557080,5.64986,2478.0,2477.8,2.2909]
[1725267557305,2.82497,2477.9,2477.8,2.2909]
[1725267557468,2.82497,2477.9,2477.8,2.8409]
[1725267557668,2.82493,2478.0,2477.8,5.8409]
[1725267558271,5.64985,2478.0,2477.8,5.2909]
[1725267558471,2.82492,2478.0,2477.8,2.2909]
[1725267559196,2.8247,2478.2,2477.8,2.51999]
[1725267559406,2.8247,2478.2,2477.9,0.55]
[1725267559407,5.64942,2478.2,2477.9,0.55]
[1725267559612,2.8247,2478.2,2477.8,2.51999]
[1725267559794,2.82485,2478.0,2477.8,2.2909]
[1725267560937,2.82497,2477.9,2477.8,2.2909]
[1725267561235,2.82497,2477.9,2477.6,2.329]
[1725267561443,2.82497,2477.9,2477.7,0.55]
[1725267561607,2.82497,2477.9,2477.7,3.55]
[1725267563495,5.64977,2478.0,2477.7,3.55]
[1725267563703,5.64977,2478.0,2477.7,4.1379]
[1725267564014,2.82485,2478.0,2477.7,4.1379]
[1725267564201,5.64979,2478.0,2477.7,4.1379]
[1725267565001,2.82498,2477.9,2477.7,4.1379]
[1725267565198,2.82498,2477.9,2477.7,3.55]
[1725267566226,2.82485,2478.0,2477.7,3.55]
[1725267566423,2.8254,2477.6,2477.3,2.4664]
[1725267566801,2.82553,2477.5,2477.0,2.4664]
[1725267567506,2.8254,2477.6,2477.1,2.4831]
[1725267567905,2.8254,2477.6,2477.2,2.3714]
[1725267568103,2.8254,2477.6,2477.3,0.519727]
[1725267568330,2.8254,2477.6,2477.4,0.55]
[1725267568840,2.8254,2477.6,2477.5,2.4049]
[1725267569963,2.8254,2477.6,2477.5,2.9549]
[1725267570303,2.8254,2477.6,2477.3,2.4174]
[1725267570517,2.8254,2477.6,2476.9,12.35]
[1725267570518,2.82542,2477.5,2477.4,0.55]
[1725267570731,2.82542,2477.5,2477.1,2.4174]
[1725267570732,2.8256,2477.4,2477.2,0.55]
[1725267571239,2.82565,2477.3,2477.2,0.55]
[1725267573137,5.6513,2477.3,2477.2,0.55]
[1725267573514,0.08056158,2477.4,2476.9,2.3459]
[1725267573719,2.82578,2477.2,2476.8,7.41]
[1725267573919,2.82622,2476.8,2476.7,2.3781]
[1725267574220,5.65244,2476.8,2476.7,2.3781]
[1725267575572,5.65244,2476.8,2476.7,2.9281]
[1725267577756,2.82541,2477.6,2477.0,2.472]
[1725267577935,2.82541,2477.6,2477.2,2.472]
[1725267578265,2.82538,2477.6,2477.3,0.9409944]
[1725267578472,2.82538,2477.6,2477.4,2.307]
[1725267578630,2.82538,2477.6,2477.5,0.55]
[1725267580689,2.82515,2477.8,2477.5,0.55]
[1725267580848,2.82526,2477.7,2477.5,0.55]
[1725267581329,2.82526,2477.7,2477.5,0.87479923]
[1725267584278,2.82531,2477.6,2477.5,0.87479923]
[1725267584458,2.82531,2477.6,2477.5,0.55]
[1725267586242,2.82562,2477.4,2477.1,3.0]
[1725267586479,2.82562,2477.4,2477.0,2.3531]
[1725267586978,2.82537,2477.6,2477.0,5.17909]
[1725267587178,2.82546,2477.5,2477.1,3.0]
[1725267587338,2.82546,2477.5,2477.0,2.3531]
[1725267587540,2.82546,2477.5,2477.1,0.55]
[1725267587864,2.82546,2477.5,2477.1,3.55]
[1725267588064,2.82546,2477.5,2477.1,4.422918]
[1725267588268,2.82555,2477.4,2477.1,4.422918]
[1725267589135,2.82566,2477.3,2477.1,3.55]
[1725267589882,2.82555,2477.4,2477.1,3.55]
[1725267591079,2.82569,2477.3,2477.1,3.55]
[1725267591280,2.82577,2477.2,2477.1,3.55]
[1725267591486,2.82577,2477.2,2477.1,0.55]
[1725267591647,2.2814,2477.5,2476.9,3.0]
[1725267591648,2.82597,2477.1,2476.9,3.0]
[1725267592139,2.82607,2477.0,2476.6,2.375]
[1725267592853,2.82613,2476.9,2476.6,2.375]
[1725267593036,2.82613,2476.9,2476.7,0.55]
[1725267593263,2.82613,2476.9,2476.7,3.55]
[1725267594752,2.82622,2476.8,2476.7,3.55]
[1725267595647,2.82622,2476.8,2476.7,0.55]
[1725267598410,2.82646,2476.6,2476.4,5.452]
[1725267598580,2.82646,2476.6,2476.5,3.55]
[1725267598772,2.82646,2476.6,2476.5,0.55]
[1725267599023,2.8266,2476.5,2476.2,2.452]
[1725267599314,2.8267,2476.4,2476.0,2.328]
[1725267599473,2.8267,2476.4,2476.0,4.586729]
[1725267600069,2.8267,2476.4,2476.0,2.328]
[1725267600267,2.80291,2476.3,2476.0,2.328]
[1725267600669,2.8267,2476.4,2476.0,2.328]
[1725267600973,2.82625,2476.8,2476.0,2.328]
[1725267601172,2.82606,2477.0,2476.4,2.2752]
[1725267601520,2.82606,2477.0,2476.3,2.82672]
[1725267601521,2.82548,2477.5,2476.9,2.8261]
[1725267601670,2.82548,2477.5,2476.8,2.4893]
[1725267601671,2.82568,2477.3,2477.0,1.08154]
[1725267601871,2.82548,2477.5,2477.1,2.4893]
[1725267602080,5.65056,2477.7,2477.2,0.55]
[1725267602272,2.82526,2477.7,2477.2,0.55]
[1725267602504,2.82539,2477.6,2477.2,0.55]
[1725267602725,2.82526,2477.7,2477.2,3.37576]
[1725267602876,2.82503,2477.9,2477.3,0.334323]
[1725267603213,2.82522,2477.7,2477.4,0.55]
[1725267603405,2.82503,2477.9,2477.4,0.55]
[1725267603708,2.82509,2477.8,2477.4,0.55]
[1725267603893,2.82503,2477.9,2477.5,2.3191]
[1725267604207,2.82503,2477.9,2477.6,0.55]
[1725267606127,2.82456,2478.3,2477.6,0.55]
[1725267606274,3.4989769,2479.4,2477.7,2.84860014]
[1725267606275,2.82431,2478.5,2477.7,2.84860014]
[1725267606591,2.82431,2478.5,2478.1,2.4699]
[1725267606786,2.8248,2478.1,2477.8,6.0199]
[1725267607208,2.82451,2478.3,2477.8,6.0199]
[1725267607888,5.6487,2478.5,2477.8,8.84498]
[1725267608089,2.82409,2478.7,2478.1,2.4529]
[1725267608292,2.82409,2478.7,2478.2,0.55]
[1725267608595,2.82409,2478.7,2478.2,3.55]
[1725267608596,2.8243,2478.5,2478.2,3.55]
[1725267609014,2.82409,2478.7,2478.2,3.55]
[1725267609318,2.82414,2478.7,2478.2,3.55]
[1725267610704,5.64828,2478.7,2478.2,3.55]
[1725267611925,2.82419,2478.6,2478.2,3.55]
[1725267612233,2.82419,2478.6,2478.2,4.15029]
[1725267613337,2.82419,2478.6,2478.3,2.4257]
[1725267613628,2.82419,2478.6,2478.4,0.55]
[1725267614487,2.82428,2478.5,2478.4,0.55]
[1725267615286,2.82414,2478.7,2478.4,0.55]
[1725267615287,2.82414,2478.7,2478.4,1.207599]
[1725267615926,5.64828,2478.7,2478.4,1.207599]
[1725267616134,2.82414,2478.7,2478.4,1.207599]
[1725267617017,2.82414,2478.7,2478.4,4.207599]
[1725267618739,2.82425,2478.6,2478.4,3.55]
[1725267618945,5.64828,2478.7,2478.4,3.55]
[1725267619178,2.82414,2478.7,2478.4,3.55]
[1725267619353,2.82414,2478.7,2478.4,4.14757]
[1725267619513,2.82413,2478.7,2478.4,4.14757]
[1725267619712,5.64827,2478.7,2478.4,4.14757]
[1725267620235,2.82413,2478.7,2478.4,4.14757]
[1725267620773,5.64827,2478.7,2478.4,4.14757]
[1725267621266,2.82413,2478.7,2478.5,0.657327]
[1725267621444,2.82413,2478.7,2478.6,0.55]
[1725267622532,5.64825,2478.7,2478.6,0.55]
[1725267623261,2.82412,2478.7,2478.6,0.55]
[1725267623572,2.82412,2478.7,2478.6,0.9707327]
[1725267624876,2.82412,2478.7,2478.6,0.55]
[1725267625341,2.82495,2478.0,2477.7,2.3188]
[1725267625541,2.82495,2478.0,2477.4,3.4964723]
[1725267625542,2.82528,2477.7,2477.4,2.3188]
[1725267625790,2.82554,2477.4,2477.2,2.2991]
[1725267626008,2.82565,2477.3,2477.1,3.214]
[1725267626280,2.82578,2477.2,2476.9,2.2991]
[1725267627456,2.82554,2477.4,2476.9,2.2991]
[1725267627457,5.65117,2477.4,2476.9,2.2991]
[1725267627664,5.65117,2477.4,2477.0,0.22991]
[1725267627665,2.82554,2477.4,2477.0,0.22991]
[1725267627842,2.82554,2477.4,2477.0,3.22991]
[1725267628051,2.82544,2477.5,2477.1,0.08072979]
[1725267628252,2.82544,2477.5,2477.1,0.63363079]
[1725267628633,2.82537,2477.6,2477.1,0.63363079]
[1725267628833,5.65076,2477.6,2477.1,0.63363079]
[1725267629060,5.65076,2477.6,2477.2,1.21895208]
[1725267629285,5.65076,2477.6,2477.3,0.08072411]
[1725267629489,5.65076,2477.6,2477.4,0.55]
[1725267629782,2.82537,2477.6,2477.4,0.55]
[1725267629938,5.65077,2477.6,2477.4,0.55]
[1725267630366,2.82542,2477.5,2477.4,0.55]
[1725267630739,2.82537,2477.6,2477.3,0.55]
[1725267631053,2.82537,2477.6,2477.3,0.6307241]
[1725267631238,2.82543,2477.5,2477.3,0.6307241]
[1725267631438,2.82537,2477.6,2477.3,0.55]
[1725267631639,2.82537,2477.6,2477.3,0.63072417]
[1725267634074,2.82514,2477.8,2477.3,1.0985699]
[1725267634436,2.82522,2477.7,2477.3,1.0985699]
[1725267634786,2.82456,2478.3,2477.5,2.8254]
[1725267634787,2.82457,2478.3,2477.5,2.8254]
[1725267635090,2.82457,2478.3,2477.7,2.4913]
[1725267635305,2.82457,2478.3,2477.8,0.55]
[1725267635306,0.08056158,2478.2,2477.8,0.55]
[1725267635649,2.82475,2478.1,2477.8,0.55]
[1725267635991,5.64917,2478.3,2477.8,0.55]
[1725267636204,5.64917,2478.3,2477.8,1.43666]
[1725267636347,0.08056158,2478.6,2477.8,7.34242757]
[1725267636348,2.82441,2478.4,2477.8,7.34242757]
[1725267636551,2.82441,2478.4,2477.9,0.98337276]
[1725267636797,2.82441,2478.4,2478.0,0.55]
[1725267639199,5.2151,2478.7,2478.0,0.63070439]
[1725267639399,2.82427,2478.6,2478.1,0.46140772]
[1725267639555,2.82427,2478.6,2478.2,0.55]
[1725267639754,2.8241,2478.7,2478.2,3.11079657]
[1725267639982,2.8241,2478.7,2478.2,3.77678921]
[1725267640189,2.8241,2478.7,2478.3,3.0]
[1725267640393,2.8241,2478.7,2478.4,0.55]
[1725267640995,0.08056158,2478.8,2478.4,0.55]
[1725267641199,0.08056158,2478.8,2478.4,1.51014192]
[1725267641755,2.90457158,2478.8,2478.4,1.51014192]
[1725267642391,0.08056158,2478.8,2478.4,1.51014192]
[1725267642597,2.90451158,2478.8,2478.4,1.51014192]
[1725267643693,0.08056158,2478.8,2478.4,1.51014192]
[1725267645073,2.82388,2478.9,2478.5,0.45101419]
[1725267645256,2.82388,2478.9,2478.6,0.55]
[1725267645715,2.90444158,2478.9,2478.6,0.55]
[1725267645871,2.90457158,2478.8,2478.5,0.55]
[1725267646204,2.82408,2478.7,2478.4,0.55]
[1725267646502,0.08056158,2478.6,2478.3,3.0]
[1725267646709,0.08056158,2478.6,2478.2,2.4801]
[1725267646710,2.90464158,2478.7,2478.2,5.4801]
[1725267646906,2.82428,2478.5,2478.3,0.55]
[1725267647108,2.82428,2478.5,2478.3,3.55]
[1725267647589,2.82428,2478.5,2478.3,0.55]
[1725267647776,2.82428,2478.5,2478.0,3.0]
[1725267647777,2.82428,2478.5,2478.1,0.55]
[1725267647977,5.72923158,2478.5,2478.1,1.928494]
[1725267648178,2.90484158,2478.5,2478.1,1.928494]
[1725267648475,2.82428,2478.5,2478.1,1.928494]
[1725267656899,2.82428,2478.5,2478.2,2.4917]
[1725267657103,2.82428,2478.5,2478.3,0.9920194]
[1725267657436,2.82412,2478.7,2478.3,0.9920194]
[1725267659332,5.72834158,2478.9,2478.3,0.9920194]
[1725267659633,5.72832158,2478.9,2478.4,3.45971306]
[1725267659797,5.64776,2478.9,2478.5,0.55]
[1725267659998,2.82386,2478.9,2478.5,0.55]
[1725267660231,2.90442158,2478.9,2478.5,0.55]
[1725267661186,2.82386,2478.9,2478.5,1.27762325]
[1725267661813,5.64776,2478.9,2478.5,1.27762325]
[1725267662143,5.64776,2478.9,2478.5,0.55]
[1725267662362,2.82386,2478.9,2478.5,0.55]
[1725267663045,2.82386,2478.9,2478.6,2.4422]
[1725267663749,0.08056158,2478.8,2478.6,2.4422]
[1725267663951,2.82406,2478.7,2478.5,0.55]
[1725267666055,2.82406,2478.7,2478.3,3.55]
[1725267669642,0.08056158,2478.8,2478.3,3.55]
[1725267669836,2.90451158,2478.8,2478.4,2.4687]
[1725267670041,2.90451158,2478.8,2478.5,0.55]
[1725267670286,0.08056158,2478.8,2478.5,0.55]
[1725267670487,2.82344,2479.3,2478.7,5.29268]
[1725267670701,2.82344,2479.3,2478.8,0.63067335]
[1725267671001,2.82344,2479.3,2478.8,0.55]
[1725267671140,0.08056158,2479.2,2478.4,2.4687]
[1725267671346,2.82425,2478.6,2478.3,3.0]
[1725267671581,2.82425,2478.6,2478.1,2.4687]
[1725267671788,2.82425,2478.6,2478.2,0.24687]
[1725267671943,2.82425,2478.6,2478.2,3.24687]
[1725267672490,2.82425,2478.6,2478.3,0.55]
[1725267673183,2.90481158,2478.6,2478.3,0.55]
[1725267673752,2.82401,2478.8,2478.3,0.63069596]
[1725267673956,2.82401,2478.8,2478.4,0.3630696]
[1725267674159,2.82401,2478.8,2478.5,2.9046]
[1725267677190,0.08056158,2479.0,2478.5,2.9046]
[1725267677361,2.82373,2479.0,2478.5,2.98528975]
[1725267677547,2.82373,2479.0,2478.6,0.61726594]
[1725267677897,2.82373,2479.0,2478.7,0.55]
[1725267679051,2.8236,2479.1,2478.7,0.55]
[1725267679556,2.90413158,2479.2,2478.7,3.37405]
[1725267680391,2.82357,2479.2,2478.7,3.37405]
[1725267680593,2.82357,2479.2,2478.7,4.59106359]
[1725267680951,2.90426158,2479.1,2478.7,0.55]
[1725267681208,0.08056158,2479.1,2478.7,0.55]
[1725267681365,2.82387,2478.9,2478.3,2.4765]
[1725267681710,2.8232,2479.5,2478.0,2.4765]
[1725267681711,2.82436,2478.5,2478.0,2.4765]